Cogmind - Beta 13 @@@ ROGUE MODE // 2024.04.01 @ 08:31:50 Player: Mantreise Result: Destroyed by S-10 Pest with Light Assault Rifle Performance ------------- Evolutions (0) 0 Regions Visited (1) 200 Robots Destroyed (24) 120 Value Destroyed (472) 472 Prototype IDs (0) 0 Alien Tech Used (0) 0 Bonus (0) 0 TOTAL SCORE: 792 Bonus ------- None Cogmind --------- Core Integrity 0/250 Matter 231/300 Energy 125/125 System Corruption 1% Temperature Cool (0) Movement Flying (37) Location -10/Materials Parts ------- > --- POWER (1) -------- Light Ion Engine > --- PROPULSION (2) --- Flight Unit Flight Unit > --- UTILITY (2) ------ Machine Analyzer Signal Interpreter > --- WEAPON (2) ------- Assault Rifle Light Assault Rifle > --- INVENTORY (5) ---- Improved Heat Sink Peak State ------------ > --- POWER ------------ Light Ion Engine > --- PROPULSION ------- Light Treads Light Treads > --- UTILITY ---------- Small Storage Unit Machine Analyzer > --- WEAPON ----------- Beam Cannon Beam Cannon > --- INVENTORY -------- Ion Engine Assault Rifle [Rating: 9] Favorites ----------- Power Light Ion Engine Engine Light Ion Engine Propulsion Light Treads Treads Light Treads Flight Unit Flight Unit Utility Machine Analyzer Device Heat Sink Storage Small Storage Unit Processor Machine Analyzer Protection Propulsion Shielding Weapon Beam Cannon Energy Gun Medium Laser Energy Cannon Beam Cannon Ballistic Gun Assault Rifle Build | -11 -10 ------- Run | Yrd Mat Slots Evolved . | . . Power . | . . Propulsion . | . . Utility . | . . Weapon . | . . Parts Attached 20 | 5 15 Power 3 | 1 2 Engine 3 | 1 2 Core . | . . Reactor . | . . Propulsion 4 | 2 2 Treads 2 | 2 . Leg . | . . Wheel . | . . Hover . | . . Flight 2 | . 2 Utility 5 | 1 4 Device 1 | . 1 Storage 1 | 1 . Processor 2 | . 2 Hackware . | . . Protection 1 | . 1 Artifact . | . . Weapon 8 | 1 7 Energy Gun 2 | 1 1 Energy Cannon 4 | . 4 Ballistic Gun 2 | . 2 Ballistic Cannon . | . . Launcher . | . . Special Weapon . | . . Impact Weapon . | . . Slashing Weapon . | . . Piercing Weapon . | . . Special Melee Weapon . | . . Unidentified Prototypes . | . . Parts Lost 5 | . 5 Power 1 | . 1 Propulsion 2 | . 2 Utility . | . . Weapon 2 | . 2 Highest Loss Streak 4 | . 4 To Critical Strikes 1 | . 1 Average Slot Usage (%) 91 | . 91 Engine 11 | . 11 Treads 25 | . 25 Device 1 | . 1 Storage 5 | . 5 Processor 14 | . 14 Protection 2 | . 2 Energy Gun 7 | . 7 Energy Cannon 18 | . 18 Naked Turns . | . . Heaviest Build 15 | 10 15 Greatest Support 40 | 40 40 Greatest Overweight (x) 3 | . 3 Average Overweight (x) . | . . Largest Inventory Capacity 8 | 8 8 Average Capacity 6 | 7 6 Most Carried 5 | 4 5 Average Carried 2 | 1 2 Final Capacity 8 | 8 5 Final Carried 2 | 2 1 Class Distribution -------------------- 100% | Mutant Dominant Class ---------------- Mutant | -10/Materials Resources | -11 -10 ----------- Run | Yrd Mat Matter Collected 444 | 232 212 Remotely . | . . Salvage Created 773 | 85 688 Parts 48 | 1 47 Haulers Intercepted 1 | . 1 Recyclers Shooed 2 | . 2 Parts Field Recycled . | . . Retrieved Matter . | . . Parts Self-Destructed . | . . Prevented . | . . Kills | -11 -10 ------- Run | Yrd Mat Combat Hostiles Destroyed 14 | . 14 Guns 3 | . 3 Cannons 11 | . 11 Classes Destroyed 8 | 1 7 Worker 2 | . 2 Hauler 1 | . 1 Recycler 2 | 1 1 Mechanic 1 | . 1 Operator 1 | . 1 Watcher 3 | . 3 Swarmer 5 | . 5 Grunt 9 | . 9 Best Kill Streak 4 | 1 4 Combat Bots Only 3 | . 3 Max Kills in Single Turn 1 | 1 1 Gunslinging . | . . Exploded . | . . Melee . | . . Uniques/NPCs Destroyed . | . . Combat | -11 -10 -------- Run | Yrd Mat Hostile Shots Fired 160 | . 160 Missed 46 | . 46 Damage Taken 1010 | . 1010 Core 256 | . 256 Absorbed by Shields . | . . Redirected to Shielding 9 | . 9 Core Remaining (%) 100 | 100 . Volleys Fired 86 | 3 83 Largest 2 | 1 2 Hottest 120 | 50 120 Shots Fired 153 | 3 150 Gun 50 | 3 47 Cannon 103 | . 103 Launcher . | . . Special . | . . Kinetic 17 | . 17 Thermal 136 | 3 133 Explosive . | . . Electromagnetic . | . . Robot Hit Streak 7 | 3 7 Robot Miss Streak 6 | . 6 Penetration Max . | . . Secondary Targets . | . . Shots Hit Robots 66 | 3 63 Core Hits 27 | 2 25 Critical Kills . | . . Critical Parts Destroyed . | . . Critical Strikes 1 | . 1 Burn 1 | . 1 Melee Attacks . | . . Impact . | . . Slashing . | . . Piercing . | . . Sneak Attacks . | . . Combat Hostiles . | . . Follow-up Attacks . | . . Damage Inflicted 1133 | 37 1096 Guns 332 | 37 295 Cannons 799 | . 799 Explosions . | . . Melee . | . . Ramming 2 | . 2 Kinetic 130 | . 130 Thermal 1001 | 37 964 Explosive . | . . Electromagnetic . | . . Impact . | . . Slashing . | . . Piercing . | . . Highest Corruption 1 | . 1 Average Corruption 1 | . 1 Corruption Purged . | . . Corruption Blocked . | . . Effects 11 | . 11 Message Errors 4 | . 4 Matter Fused 2 | . 2 Energy Discharges 1 | . 1 Parts Rejected 1 | . 1 Data Loss (minor) 1 | . 1 Misfires 1 | . 1 Weapon Failures 1 | . 1 Overload Shots . | . . Overflow Damage . | . . Projectiles . | . . Explosions . | . . Melee . | . . Knockbacks . | . . Impact . | . . Kinetic . | . . Secondary . | . . Self-Inflicted Damage . | . . Shots . | . . Rammed 1 | . 1 Targets Rammed 1 | . 1 Kicked . | . . Crushed . | . . Highest Temperature 416 | 30 416 Average Temperature 140 | 16 142 Received Heat Transfer 195 | . 195 Effects 6 | . 6 Shutdowns 1 | . 1 Interference 3 | . 3 Matter Decay 1 | . 1 Damage (minor) 1 | . 1 Siege Activations . | . . Robots Corrupted . | . . Combat Hostiles . | . . Parts Fried . | . . Impact Corruptions . | . . Robots Melted . | . . Combat Hostiles . | . . Parts Melted 2 | . 2 Heat Transferred 2368 | 111 2257 Parts Sabotaged . | . . Parts Stolen . | . . Parts Stripped . | . . Power Chain Reactions . | . . Alert | -11 -10 ------- Run | Yrd Mat Peak Influence 216 | 5 216 Initial 3 | . 3 Average 59 | 2 65 Maximum Alert Level 1 | . 1 Low Security (%) 98 | 100 98 Level 1 1 | . 1 Level 2 . | . . Level 3 . | . . Level 4 . | . . Level 5 . | . . High Security . | . . Max Security . | . . Squads Dispatched 5 | . 5 Investigation 1 | . 1 Extermination . | . . Reinforcement 4 | . 4 Assault . | . . Garrison . | . . Intercept . | . . Searches Triggered . | . . Construction Impeded . | . . Haulers Reinforced . | . . Active Scanning Responses . | . . Cargo Convoy Interrupts . | . . Stealth | -11 -10 --------- Run | Yrd Mat Distress Signals 1 | . 1 Communications Jammed . | . . Distress Signals . | . . Times Spotted 26 | . 26 Peak Tracking Total 5 | . 5 Tactical Retreats 2 | . 2 Traps | -11 -10 ------- Run | Yrd Mat Traps Triggered 2 | . 2 Indirectly . | . . Trap Hack Attempts . | . . Triggered . | . . Disarmed . | . . Reprogrammed . | . . Reused . | . . Traps Extracted . | . . Installed . | . . Triggered . | . . Machines | -11 -10 ---------- Run | Yrd Mat Machines Disabled 1 | . 1 Max in Single Turn 1 | . 1 Machines Repaired . | . . Machines Dismantled . | . . Machines Sabotaged . | . . Overloaded Fab Kills . | . . Hacking | -11 -10 --------- Run | Yrd Mat Machines Accessed 5 | . 5 Terminals 3 | . 3 Fabricators . | . . Repair Stations . | . . Recycling Units 2 | . 2 Scanalyzers . | . . Garrison Access . | . . Total Hacks 11 | . 11 Successful 8 | . 8 Failed 3 | . 3 Catastrophic . | . . Database Lockouts . | . . Manual 6 | . 6 Terminals 8 | . 8 Fabricators . | . . Repair Stations . | . . Recycling Units 3 | . 3 Scanalyzers . | . . Garrison Access . | . . Terminal Hacks 5 | . 5 Record 2 | . 2 Alert Level 1 | . 1 Assault Status 1 | . 1 Hauler Manifests 1 | . 1 Fabricator Hacks . | . . Repair Station Hacks . | . . Recycling Unit Hacks 1 | . 1 Report Inventory 1 | . 1 Scanalyzer . | . . Garrison Access Hacks . | . . Unauthorized Hacks 2 | . 2 Terminals . | . . Fabricators . | . . Repair Stations . | . . Recycling Units 2 | . 2 Reject 2 | . 2 Scanalyzers . | . . Garrison Access . | . . Data Cores Recovered . | . . Used . | . . Hacking Detections 5 | . 5 Full Trace Events 1 | . 1 Feedback Events . | . . Feedback Blocked . | . . Robot Schematics Acquired . | . . Robots Built . | . . Authchips . | . . Time . | . . Total Robot Build Rating . | . . Part Schematics Acquired . | . . Parts Built . | . . Authchips . | . . Time . | . . Total Part Build Rating . | . . Parts Repaired . | . . Time . | . . Parts Recycled . | . . Recycled Matter . | . . Retrieved Matter . | . . Retrieved Components . | . . Parts Scanalyzed . | . . Part Schematics Acquired . | . . Parts Damaged . | . . Bothacking | -11 -10 ------------ Run | Yrd Mat Used RIF Installer . | . . Robots Hacked . | . . Non-combat . | . . Combat . | . . Robot Hacks Applied . | . . Relay Couplers Released . | . . Fabnet Peak Effective % . | . . Robots Rewired . | . . Allies Hacked . | . . Hacks Repelled . | . . Allies | -11 -10 -------- Run | Yrd Mat Total Allies . | . . Largest Group . | . . Highest-Rated Group . | . . Highest-Rated Ally . | . . Total Orders . | . . Ally Attacks . | . . Total Damage . | . . Kills . | . . Allies Corrupted . | . . Allies Melted . | . . Intel | -11 -10 ------- Run | Yrd Mat Robot Analysis Total . | . . Derelict Logs Recovered . | . . Drone Launches . | . . Drone Recoveries . | . . Exploration | -11 -10 ------------- Run | Yrd Mat Turns Passed 1175 | 111 1064 Spaces Moved 546 | 61 485 Core 27 | 7 20 Treads 511 | 54 457 Legs . | . . Wheels . | . . Hover . | . . Flight 8 | . 8 Fastest Speed 37 | 50 37 Average Speed 155 | 147 156 Slowest Speed 200 | 160 200 Overloaded Moves . | . . Propulsion Burnouts . | . . Robots Hopped . | . . Cave-ins Triggered . | . . Exploration Rate (%) 39 | 4 75 Regions Visited 1 Branch Regions . Pre-discovered Areas . | . . Known Exits Taken . | . . Unknown Exits Taken 1 | 1 . Scrap Searched . | . . Spaces Dug . | . . Terrain Destroyed . | . . Melee . | . . Projectile . | . . AOE . | . . Terrain Rammed . | . . Walls Destroyed . | . . Machines Disabled . | . . Actions | -11 -10 --------- Run | Yrd Mat Total 720 | 79 641 Wait 39 | 4 35 Move 545 | 60 485 Hop . | . . Pick Up 21 | 7 14 Fast Attach . | . . Attach 18 | 5 13 Detach 1 | . 1 Swap 2 | . 2 Drop 7 | . 7 Fire 86 | 3 83 Melee . | . . Ram . | . . Kick . | . . Crush 1 | . 1 Escape Stasis . | . . Rewire . | . . Trap . | . . Miscellaneous . | . . Route ------- -11/Scrapyard -10/Materials (discovered 4 exits: *Mat x3 / *Min) History --------- Turn | Location | Event 8 | -11/Scrapyard | Discovered new exit (range 15) 112 | -11/Scrapyard | Entered Materials 304 | -10/Materials | Build established: Mutant 378 | -10/Materials | Discovered new exit (range 12) 749 | -10/Materials | Discovered new exit (range 9) 774 | -10/Materials | Identified exit to Materials 861 | -10/Materials | Discovered new exit (range 13) 891 | -10/Materials | Identified exit to Mines 1002 | -10/Materials | Discovered exit to Materials (range 15) 1096 | -10/Materials | Core integrity fell below 50% 1115 | -10/Materials | Core integrity fell below 20% 1141 | -10/Materials | Lost 4 parts (2n2w) 1176 | -10/Materials | Destroyed by S-10 Pest with Light Assault Rifle Last Messages --------------- Heat Sink discarded by recycling unit. Lgt. Treads destroyed. Beam Cannon destroyed. Power failure, Ion Engine shutdown. U-05 Engineer builds a Door. Critical hit (Destroy). Beam Cannon destroyed. System corrupted: Component data lost. Destroyed Flight Unit. S-10 Pest destroyed. Acquired 13 matter. Acquired 20 matter. Acquired Lgt. Ion Engine. Dropped Ion Engine. Acquired Flight Unit. Destroyed Welding Torch. U-05 Engineer sends out distress signal. Acquired Lgt. Assault Rifle. K-01 Serf destroyed. System corrupted: Assault Rifle jammed. Map ----- +----------------------------------------------------+ | | | | | | | | | | | | | | | | | | | | | | | | | | | | | | | | | | | ?????????????????????????????????????????????????? | | ????????????????????????##???????????????????????? | | ????????????????????????!!##?????????????????????? | | ????????????????????????? !#?????????????????????? | | ????????????????????????? #?????????????????????? | | ????????????############?# ###???????????????????? | | ?????######?# # = ### ##??????????????????? | | ?????# # < #! * *+ = +?"""??????????????? | | ?????# """ # # ! "" ##@ ##?"""??????????????? | | ?????# """ + + !=Y" ## #??"""??????????????? | | ?????# """ # # =!"" ## #???????????????????? | | ?????# """ # # ##s #??"""??????????????? | | ?????# ?# ######### #??"""??????????????? | | ?????######?# #???????# #??"""??????????????? | | ????????????# =#???????# #???????????????????? | | ????????????# %#???????# #???????????????????? | | ????????????# #???????# ! ???????????????????? | | ????????????# #???????# ^*%=???????????????????? | | ????????????# % #???????+^ ??????????????????? | | ????????????# +???????# g ??????????????????? | | ????????????# #???????# ?????????????????? | | ????????????# #???????##]] ?????????????????? | | ????????????# #????????#]! ????????????????? | | ####????????# ] #????????# ????????????????? | | ########## #????????# ???????????????? | | !%[ #????????# ???????????????? | | =% #????????# ###?????????????????? | | = #????????? ????????????????????? | | ########## % #????????????????????????????????? | | +###????????# *=#??"T"???????????????????????????? | | ????????????# %#????????????????????????????????? | | ????????????# #????????????????????????????????? | | """"????????# #????????????????????????????????? | +----------------------------------------------------+ Best States ------------- Heat Dissipation 35 Energy Generation 10 Energy Capacity 250 Matter Stores 300 Matter Capacity 300 Sight Range 16 Terrain Scan Density 10 Propulsion Shielding 33 Evasion (%) 50 Recoil Reduction 2 Item Schematics ----------------- None Robot Schematics ------------------ None Fabricated ------------ Nothing Alien Tech Used ----------------- None Achievements -------------- None Challenges ------------ None Game ------ Seed MyomerDisruptorSabre Manual? 0 Play Time 00:14:21 Cumulative 7.5 hours Start 2024.04.01 @ 08:17:59 End 2024.04.01 @ 08:31:50 Sessions 1 Manual Loads 0 Difficulty Rogue Special Mode None Game No. 6 Rogue 4 Adventurer 2 Explorer 0 Win Type - Total 0 Types 0/0/0/0/0/0/0/0/0 Lore% 6 Gallery% 16 Achievement% 17 Wizard Run 0 Options --------- Layout 0 ASCII 0 Keyboard 0 Movement Mouse Keybinds 0 Fullscreen 1 Font 18/SmallcapsGlow Map View 38x25 Zoom Use 99% Tactical HUD 0 Map Filters NONE Filters NONE Steam 1 RUN: e873c05d-9eda-4e8e-af0b-9d6e8a82670b